Cogmind - Beta 13 X1 @@@ ROGUE MODE // 2023.09.21 @ 19:24:51 Player: f3-rnm Result: Destroyed by M1-DUS(R) with Subdweller Shrapnel Launcher Performance ------------- Evolutions (0) 0 Regions Visited (2) 400 Robots Destroyed (26) 130 Value Destroyed (677) 677 Prototype IDs (1) 20 Alien Tech Used (0) 0 Bonus (0) 0 TOTAL SCORE: 1227 Bonus ------- None Cogmind --------- Core Integrity 0/250 Matter 214/300 Energy 180/180 System Corruption 0% Temperature Cool (0) Movement Rolling (130) Ox2 Location -10/Subcaves Parts ------- > --- POWER (1) -------- Meta Core > --- PROPULSION (2+1) - Subdweller Monowheel > --- UTILITY (2+1) ---- High-capacity Storage Unit Makeshift Kinetic Plating > --- WEAPON (2) ------- Light Cannon Battle Cannon > --- INVENTORY (20) --- Subdweller Power Source Light Nuclear Core Small Storage Unit Medium Matter Pod (100) Subdweller Beam Cannon Subdweller Beam Cannon Light Cannon Light Cannon Battle Cannon Hammer Peak State ------------ > --- POWER ------------ Meta Core > --- PROPULSION ------- Light Treads Subdweller Monowheel > --- UTILITY ---------- High-capacity Storage Unit Makeshift Kinetic Plating > --- WEAPON ----------- Light Cannon Battle Cannon Hammer > --- INVENTORY -------- Subdweller Power Source Light Nuclear Core Small Storage Unit Medium Matter Pod Subdweller Beam Cannon Subdweller Beam Cannon Light Cannon Battle Cannon [Rating: 26] Favorites ----------- Power Light Ion Engine Engine Light Ion Engine Power Core Meta Core Propulsion Light Treads Treads Light Treads Wheel Subdweller Monowheel Utility High-capacity Storage Unit Storage High-capacity Storage Unit Protection Scrap Shield Weapon Light Cannon Ballistic Gun Light Assault Rifle Ballistic Cannon Light Cannon Impact Weapon Hammer Build | -11 -10 -10 ------- Run | Jun Mat Sub Slots Evolved . | . . . Power . | . . . Propulsion . | . . . Utility . | . . . Weapon . | . . . Parts Attached 20 | 4 7 9 Power 3 | 1 . 2 Engine 2 | 1 . 1 Core 1 | . . 1 Reactor . | . . . Propulsion 5 | 2 2 1 Treads 4 | 2 2 . Leg . | . . . Wheel 1 | . . 1 Hover . | . . . Flight . | . . . Utility 5 | 1 1 3 Device . | . . . Storage 3 | 1 1 1 Processor . | . . . Hackware . | . . . Protection 2 | . . 2 Artifact . | . . . Weapon 7 | . 4 3 Energy Gun . | . . . Energy Cannon . | . . . Ballistic Gun 2 | . 2 . Ballistic Cannon 4 | . 2 2 Launcher . | . . . Special Weapon . | . . . Impact Weapon 1 | . . 1 Slashing Weapon . | . . . Piercing Weapon . | . . . Special Melee Weapon . | . . . Unidentified Prototypes 1 | . . 1 Parts Lost 7 | . 2 5 Power 2 | . 1 1 Propulsion 2 | . . 2 Utility 1 | . . 1 Weapon 2 | . 1 1 Highest Loss Streak 3 | . 2 3 To Critical Strikes . | . . . Average Slot Usage (%) 77 | . 78 76 Engine 8 | . 9 7 Core 1 | . . 2 Treads 25 | . 27 23 Wheel 1 | . . 2 Storage 7 | . 14 3 Protection 5 | . . 9 Ballistic Gun 7 | . 19 . Ballistic Cannon 18 | . 7 26 Naked Turns . | . . . Heaviest Build 61 | 8 46 61 Greatest Support 40 | 40 40 40 Greatest Overweight (x) 3 | . 2 3 Average Overweight (x) . | . . . Largest Inventory Capacity 20 | 8 20 20 Average Capacity 12 | 6 18 9 Most Carried 15 | 5 15 14 Average Carried 8 | 2 11 6 Final Capacity 20 | 8 20 20 Final Carried 14 | 3 14 10 Class Distribution -------------------- 100% | Mutant Dominant Class ---------------- Mutant | -10/Materials Mutant | -10/Subcaves Resources | -11 -10 -10 ----------- Run | Jun Mat Sub Matter Collected 947 | 240 280 427 Remotely . | . . . Salvage Created 772 | . 483 289 Parts 54 | . 30 24 Haulers Intercepted 2 | . 2 . Recyclers Shooed 1 | . 1 . Parts Field Recycled . | . . . Retrieved Matter . | . . . Parts Self-Destructed 18 | . . 18 Prevented . | . . . Kills | -11 -10 -10 ------- Run | Jun Mat Sub Combat Hostiles Destroyed 21 | . 8 13 Guns 7 | . 7 . Cannons 14 | . 1 13 Classes Destroyed 7 | . 6 1 Worker 1 | . 1 . Hauler 2 | . 2 . Recycler 1 | . 1 . Operator 1 | . 1 . Swarmer 6 | . 2 4 Grunt 6 | . 6 . Subdweller 9 | . . 9 Best Kill Streak 4 | . 3 4 Combat Bots Only 4 | . 2 4 Max Kills in Single Turn 1 | . 1 1 Gunslinging . | . . . Exploded . | . . . Melee . | . . . Uniques/NPCs Destroyed . | . . . Combat | -11 -10 -10 -------- Run | Jun Mat Sub Damage Taken 1526 | . 409 1117 Core 262 | . 73 189 Absorbed by Shields . | . . . Ignored by Resistances 29 | . . 29 Regen/Repaired (Parts) 71 | . 71 . Core Remaining (%) 100 | 100 . . Volleys Fired 82 | . 36 46 Largest 2 | . 2 2 Hottest 74 | . 55 74 Shots Fired 164 | . 72 92 Gun 71 | . 71 . Cannon 93 | . 1 92 Launcher . | . . . Special . | . . . Kinetic 164 | . 72 92 Thermal . | . . . Explosive . | . . . Electromagnetic . | . . . Robot Hit Streak 30 | . 6 30 Robot Miss Streak 3 | . 3 3 Penetration Max . | . . . Secondary Targets 1 | . 1 . Max Gunslinging Chain 1 | . 1 . Shots Hit Robots 113 | . 44 69 Core Hits 49 | . 27 22 Critical Kills . | . . . Critical Parts Destroyed . | . . . Critical Strikes 3 | . 1 2 Blast 3 | . 1 2 Melee Attacks 2 | . . 2 Impact 2 | . . 2 Slashing . | . . . Piercing . | . . . Sneak Attacks . | . . . Combat Hostiles . | . . . Follow-up Attacks . | . . . Damage Inflicted 1577 | . 486 1091 Guns 467 | . 467 . Cannons 1109 | . 18 1091 Explosions . | . . . Melee . | . . . Ramming 1 | . 1 . Kinetic 1576 | . 485 1091 Thermal . | . . . Explosive . | . . . Electromagnetic . | . . . Impact . | . . . Slashing . | . . . Piercing . | . . . Highest Corruption . | . . . Average Corruption . | . . . Corruption Purged . | . . . Corruption Blocked . | . . . Overload Shots . | . . . Overflow Damage . | . . . Projectiles . | . . . Explosions . | . . . Melee . | . . . Knockbacks 10 | . . 10 Impact . | . . . Kinetic 10 | . . 10 Secondary . | . . . Self-Inflicted Damage . | . . . Shots . | . . . Rammed 1 | . 1 . Targets Rammed 1 | . 1 . Kicked . | . . . Crushed . | . . . Highest Temperature 27 | . 27 2 Average Temperature 7 | . 8 2 Received Heat Transfer 420 | . 246 174 Siege Activations . | . . . Robots Corrupted . | . . . Combat Hostiles . | . . . Parts Fried . | . . . Impact Corruptions . | . . . Robots Melted . | . . . Combat Hostiles . | . . . Parts Melted . | . . . Heat Transferred . | . . . Parts Sabotaged . | . . . Parts Stolen . | . . . Parts Stripped . | . . . Power Chain Reactions . | . . . Missiles Intercepted . | . . . Alert | -11 -10 -10 ------- Run | Jun Mat Sub Peak Influence 161 | . 161 . Initial . | . . . Average 54 | . 58 . Maximum Alert Level . | . . . Low Security (%) 100 | 100 100 . Level 1 . | . . . Level 2 . | . . . Level 3 . | . . . Level 4 . | . . . Level 5 . | . . . High Security . | . . . Max Security . | . . . Squads Dispatched 1 | . 1 . Investigation . | . . . Extermination . | . . . Reinforcement 1 | . 1 . Assault . | . . . Garrison . | . . . Intercept . | . . . Searches Triggered . | . . . Construction Impeded . | . . . Haulers Reinforced . | . . . Active Scanning Responses . | . . . Cargo Convoy Interrupts . | . . . Stealth | -11 -10 -10 --------- Run | Jun Mat Sub Distress Signals . | . . . Communications Jammed . | . . . Distress Signals . | . . . Times Spotted 30 | . 15 15 Peak Tracking Total 6 | . 4 6 Tactical Retreats 3 | . 1 2 Traps | -11 -10 -10 ------- Run | Jun Mat Sub Traps Triggered 1 | . 1 . Indirectly . | . . . Trap Hack Attempts . | . . . Triggered . | . . . Disarmed . | . . . Reprogrammed . | . . . Reused . | . . . Traps Extracted . | . . . Installed . | . . . Triggered . | . . . Machines | -11 -10 -10 ---------- Run | Jun Mat Sub Machines Disabled . | . . . Max in Single Turn . | . . . Machines Repaired . | . . . Machines Sabotaged . | . . . Overloaded Fab Kills . | . . . Hacking | -11 -10 -10 --------- Run | Jun Mat Sub Machines Accessed 4 | . 4 . Terminals 2 | . 2 . Fabricators . | . . . Repair Stations 1 | . 1 . Recycling Units 1 | . 1 . Scanalyzers . | . . . Garrison Access . | . . . Total Hacks 11 | . 11 . Successful 4 | . 4 . Failed 7 | . 7 . Catastrophic 2 | . 2 . Database Lockouts . | . . . Manual 7 | . 7 . Terminals 7 | . 7 . Fabricators . | . . . Repair Stations 2 | . 2 . Recycling Units 2 | . 2 . Scanalyzers . | . . . Garrison Access . | . . . Terminal Hacks 2 | . 2 . Record 1 | . 1 . Terminal Index 1 | . 1 . Fabricator Hacks . | . . . Repair Station Hacks 2 | . 2 . Scan Component 1 | . 1 . Repair 1 | . 1 . Recycling Unit Hacks . | . . . Scanalyzer . | . . . Garrison Access Hacks . | . . . Unauthorized Hacks . | . . . Terminals . | . . . Fabricators . | . . . Repair Stations . | . . . Recycling Units . | . . . Scanalyzers . | . . . Garrison Access . | . . . Data Cores Recovered . | . . . Used . | . . . Hacking Detections 4 | . 4 . Full Trace Events 2 | . 2 . Feedback Events . | . . . Feedback Blocked . | . . . Robot Schematics Acquired . | . . . Robots Built . | . . . Authchips . | . . . Time . | . . . Total Robot Build Rating . | . . . Part Schematics Acquired . | . . . Parts Built . | . . . Authchips . | . . . Time . | . . . Total Part Build Rating . | . . . Parts Repaired 1 | . 1 . Time 26 | . 26 . Parts Recycled . | . . . Recycled Matter . | . . . Retrieved Matter . | . . . Retrieved Components . | . . . Parts Scanalyzed . | . . . Part Schematics Acquired . | . . . Parts Damaged . | . . . Bothacking | -11 -10 -10 ------------ Run | Jun Mat Sub Used RIF Installer . | . . . Robots Hacked . | . . . Non-combat . | . . . Combat . | . . . Robot Hacks Applied . | . . . Relay Couplers Released . | . . . Fabnet Peak Effective % . | . . . Robots Rewired . | . . . Allies Hacked . | . . . Hacks Repelled . | . . . Allies | -11 -10 -10 -------- Run | Jun Mat Sub Total Allies . | . . . Largest Group . | . . . Highest-Rated Group . | . . . Highest-Rated Ally . | . . . Total Orders . | . . . Ally Attacks . | . . . Total Damage . | . . . Kills . | . . . Allies Corrupted . | . . . Allies Melted . | . . . Intel | -11 -10 -10 ------- Run | Jun Mat Sub Robot Analysis Total . | . . . Derelict Logs Recovered . | . . . Drone Launches . | . . . Drone Recoveries . | . . . Exploration | -11 -10 -10 ------------- Run | Jun Mat Sub Turns Passed 3586 | 91 1389 2106 Spaces Moved 1732 | 59 502 1171 Core 12 | 12 . . Treads 1528 | 47 502 979 Legs . | . . . Wheels 192 | . . 192 Hover . | . . . Flight . | . . . Fastest Speed 50 | 50 160 130 Average Speed 181 | 137 229 163 Slowest Speed 320 | 160 320 240 Overloaded Moves . | . . . Propulsion Burnouts . | . . . Robots Hopped . | . . . Cave-ins Triggered . | . . . Exploration Rate (%) 40 | 3 75 44 Regions Visited 2 Branch Regions 1 Pre-discovered Areas . | . . . Known Exits Taken . | . . . Unknown Exits Taken 2 | 1 1 . Scrap Searched 4 | . . 4 Spaces Dug . | . . . Terrain Destroyed 1 | . . 1 Melee . | . . . Projectile 1 | . . 1 AOE . | . . . Terrain Rammed . | . . . Walls Destroyed . | . . . Machines Disabled . | . . . Actions | -11 -10 -10 --------- Run | Jun Mat Sub Total 2011 | 69 671 1271 Wait 130 | . 109 21 Move 1730 | 58 501 1171 Hop . | . . . Pick Up 37 | 7 17 13 Fast Attach 4 | . . 4 Attach 15 | 4 6 5 Detach . | . . . Swap 1 | . 1 . Drop 6 | . . 6 Fire 82 | . 36 46 Melee 2 | . . 2 Ram . | . . . Kick . | . . . Crush 1 | . 1 . Escape Stasis . | . . . Rewire . | . . . Trap . | . . . Miscellaneous 3 | . . 3 Route ------- -11/Junkyard -10/Materials (discovered 4 exits: [*Mat x2] / [*Min] / [*Sub]) -10/Subcaves (discovered 2 exits: [*Mat x2]) History --------- Turn | Location | Event 15 | -11/Junkyard | Discovered new exit (range 14) 92 | -11/Junkyard | Entered Materials 308 | -10/Materials | Build established: Mutant 767 | -10/Materials | Discovered new exit (range 14) 902 | -10/Materials | Discovered new exit (range 16) 1155 | -10/Materials | Repaired Lgt. Treads 1238 | -10/Materials | Discovered new exit (range 7) 1468 | -10/Materials | Discovered new exit (range 4) 1481 | -10/Materials | Entered Subcaves 1735 | -10/Subcaves | Disturbed a concealed Subdweller 2397 | -10/Subcaves | A swath of the cavern ceiling suddenly collapsed 2471 | -10/Subcaves | Discovered new exit (range 11) 2485 | -10/Subcaves | Shifting Twisted Machinery released Sub. Power Source 3016 | -10/Subcaves | Core integrity fell below 50% 3027 | -10/Subcaves | A Subdweller sparked back to life 3027 | -10/Subcaves | A Subdweller sparked back to life 3027 | -10/Subcaves | A Subdweller sparked back to life 3056 | -10/Subcaves | Core integrity fell below 20% 3078 | -10/Subcaves | Lost 3 parts (1p1n1w) 3078 | -10/Subcaves | Found Prototype Power Core 3079 | -10/Subcaves | Identified Meta Core 3080 | -10/Subcaves | Attached Meta Core, gained temporary slots: Propulsion, Utility, Weapon 3108 | -10/Subcaves | Discovered new exit (range 13) 3587 | -10/Subcaves | Destroyed by M1-DUS(R) with Subdweller Shrapnel Launcher Last Messages --------------- 03094_ Acquired 4 matter. 03097_ Acquired 41 matter. 03099_ Acquired 10 matter. 03108_ EXIT=FOUND 03121_ Acquired 41 matter. 03188_ Acquired Sub. Beam Cannon. 03289_ Acquired Lgt. Cannon. 03294_ Acquired Hcp. Storage Unit. 03300_ Acquired Sml. Storage Unit. 03310_ Acquired Battle Cannon. 03314_ Acquired Sub. Beam Cannon. 03326_ Acquired Lgt. Nuclear Core. 03340_ Acquired 10 matter. 03497_ Dropped Hammer. 03498_ Temporary Weapon slot lost. 03498_ Acquired Hammer. 03509_ Acquired Lgt. Cannon. 03563_ LF-DUT(R) destroyed. 03565_ Lgt. Treads destroyed. 03569_ M1-DUS(R) affixes Scrap Shield Fragment to Scrap Shield. Map ----- +----------------------------------------------------+ | ?????????????????????????????????????????????????? | | ?????????????????????????????????????????????????? | | ?????????????????????????????????????????????????? | | ?????????????????????????????????????????????????? | | ?????????????????????????????????????????????????? | | ?????????????????????????????????????????????????? | | ?????????????????????????????????????????????????? | | ?????????????????????????????????????????????????? | | ?????????????????????????????????????????????????? | | ?????????????????????????????????????????????????? | | ?????????????????????????????????????????????????? | | ?????????????????????????????????????????????????? | | ?????????????????????????????????????????????????? | | ?????????????????????????????????????????????????? | | ?????????????????????????????????????????????????? | | ????????????????????????????????????????####?????? | | ???????????????????????????????????????## #?????? | | ???????????????????????????????###?????# #?????? | | ??????????????????????????###### ###??# #?????? | | ??????????????????????#### # ##??# ##????? | | ????????????########?## ## ##?## #????? | | ???????????## # ;### #### #????? | | ??????????? ;#### ## #????? | | ?????????? ## ##????? | | ???????????# %R]! ##?????? | | ???????????# %!* @ ; ####??????? | | ??????????????## ; ## ##?????????? | | ??????????????## ;; ## ####??????????? | | ??????????????# ## ##?????????????? | | ?????????????# ; #??????????????? | | ?????????????""""""### # #??????????????? | | ????????????????""???#### #??????????????? | | ???????????????? ??????# #??????????????? | | ???????????????????????# ## ##?????????????? | | ??????????????????????## ### ##????????????? | | ??????????????????????# ##?## #????????????? | | ?????????????????????## ##?## #???###??????? | | ????????????????????## ### #???#%##?????? | | ???????????????????## ## #???# #?????? | | ???????????????????# ## ##?## #?????? | | ???????????????????# ## #### ]### ##?????? | | ???????????????????## #####??## ##??????? | | #?????????????????### ## #???# ##???????? | | ##???????????????##"" ## #???# ##????????? | | #####????##????##""" ## #???# ######????? | | # #???#"##??##"""" ##???### #????? | | ## #??? ####"" ##??????## #????? | | # #### ## ## ##????????# #????? | | ## ## ### #?????????# ##????? | | ## #?# ## ##????????## ###?????? | +----------------------------------------------------+ Best States ------------- Heat Dissipation 25 Energy Generation 17 Energy Capacity 180 Matter Stores 300 Matter Capacity 300 Sight Range 16 Terrain Scan Density 10 Armor Coverage 800 Resistance: KI 10 Evasion (%) 50 Recoil Reduction 2 Item Schematics ----------------- None Robot Schematics ------------------ None Fabricated ------------ Nothing Alien Tech Used ----------------- None Achievements -------------- None Challenges ------------ None Game ------ Seed DimensionalWardroneShielding Manual? 0 Play Time 00:13:45 Cumulative 76.1 hours Start 2023.09.20 @ 20:49:03 End 2023.09.21 @ 19:24:51 Sessions 2 Manual Loads 0 Difficulty Rogue Special Mode None Game No. 73 Rogue 37 Adventurer 36 Explorer 0 Win Type - Total 7 Types 2/0/5/0/0/0/0/0/0 Lore% 45 Gallery% 67 Achievement% 57 Wizard Run 0 Options --------- ASCII 0 Keyboard 0 Movement Mouse Keybinds 0 Fullscreen 1 Font 18/SmallcapsGlow Map View 76x50 Tactical HUD 1 Map Filters NONE Filters NONE Steam 1 RUN: d945912b-12c8-4727-878a-bcf28a11e5af